[Event "Titled Tuesday Blitz June 20 Early 2023"]
[White "Balla, Tamas-Kristof"]
[Black "Degenbaev, Aziz"]
[WhiteFideId "1208497"]
[BlackFideId "13802640"]
[WhiteElo "2334"]
[BlackElo "2152"]
[Result "0-1"]
[Round "6"]
[TimeControl "180+2"]
[Date "2023.06.20"]
[WhiteClock "0:00:07"]
[BlackClock "0:00:03"]
[Board "111"]

1. e4 {[%clk 0:03:00]}  c5 {[%clk 0:02:59]} 2. Nf3 {[%clk 0:03:00]}  d6 {[%clk 0:03:00]} 3. d4 {[%clk 0:03:00]}  cxd4 {[%clk 0:03:01]} 4. Qxd4 {[%clk 0:03:01]}  a6 {[%clk 0:02:56]} 5. c4 {[%clk 0:02:59]}  Nc6 {[%clk 0:02:56]} 6. Qe3 {[%clk 0:03:00]}  g6 {[%clk 0:02:52]} 7. h3 {[%clk 0:02:59]}  Bg7 {[%clk 0:02:48]} 8. Be2 {[%clk 0:02:59]}  Nf6 {[%clk 0:02:49]} 9. O-O {[%clk 0:02:59]}  O-O {[%clk 0:02:49]} 10. Rd1 {[%clk 0:03:00]}  Qc7 {[%clk 0:02:37]} 11. Nc3 {[%clk 0:02:59]}  b6 {[%clk 0:02:15]} 12. Rb1 {[%clk 0:02:57]}  Bb7 {[%clk 0:02:13]} 13. b3 {[%clk 0:02:57]}  Rac8 {[%clk 0:02:09]} 14. Bb2 {[%clk 0:02:57]}  Ba8 {[%clk 0:02:08]} 15. Rbc1 {[%clk 0:02:56]}  Qb8 {[%clk 0:02:07]} 16. Na4 {[%clk 0:02:47]}  Nd7 {[%clk 0:01:45]} 17. Bxg7 {[%clk 0:02:44]}  Kxg7 {[%clk 0:01:46]} 18. Nc3 {[%clk 0:02:26]}  Nc5 {[%clk 0:01:29]} 19. Nd5 {[%clk 0:02:19]}  e6 {[%clk 0:01:27]} 20. Qc3+ {[%clk 0:02:18]}  f6 {[%clk 0:01:22]} 21. Nf4 {[%clk 0:02:10]}  Rce8 {[%clk 0:01:11]} 22. Qe3 {[%clk 0:02:04]}  Ne5 {[%clk 0:01:08]} 23. Nd4 {[%clk 0:01:46]}  a5 {[%clk 0:00:59]} 24. a3 {[%clk 0:01:45]}  Kf7 {[%clk 0:00:56]} 25. b4 {[%clk 0:01:46]}  axb4 {[%clk 0:00:55]} 26. axb4 {[%clk 0:01:46]}  Nxe4 {[%clk 0:00:56]} 27. Ndxe6 {[%clk 0:01:41]}  g5 {[%clk 0:00:54]} 28. Nxf8 {[%clk 0:01:29]}  gxf4 {[%clk 0:00:52]} 29. Qxf4 {[%clk 0:01:29]}  Rxf8 {[%clk 0:00:50]} 30. c5 {[%clk 0:01:22]}  bxc5 {[%clk 0:00:47]} 31. bxc5 {[%clk 0:01:22]}  dxc5 {[%clk 0:00:48]} 32. Qh6 {[%clk 0:01:05]}  Kg8 {[%clk 0:00:36]} 33. Bc4+ {[%clk 0:00:59]}  Nxc4 {[%clk 0:00:24]} 34. Rxc4 {[%clk 0:00:57]}  Qb7 {[%clk 0:00:24]} 35. f3 {[%clk 0:00:49]}  Ng5 {[%clk 0:00:25]} 36. Rg4 {[%clk 0:00:34]}  Qb3 {[%clk 0:00:03]} 37. Rd7 {[%clk 0:00:26]}  Qb1+ {[%clk 0:00:04]} 38. Kh2 {[%clk 0:00:25]}  Qb8+ {[%clk 0:00:04]} 39. f4 {[%clk 0:00:25]}  Rf7 {[%clk 0:00:04]} 40. Rxf7 {[%clk 0:00:18]}  Kxf7 {[%clk 0:00:05]} 41. Qh5+ {[%clk 0:00:17]}  Ke7 {[%clk 0:00:03]} 42. Rg3 {[%clk 0:00:11]}  Qxf4 {[%clk 0:00:03]} 43. h4 {[%clk 0:00:09]}  Ne4 {[%clk 0:00:03]} 44. Qxh7+ {[%clk 0:00:10]}  Kd6 {[%clk 0:00:02]} 45. Qg8 {[%clk 0:00:01]}  Qxg3+ {[%clk 0:00:02]} 46. Qxg3+ {[%clk 0:00:02]}  Nxg3 {[%clk 0:00:03]} 47. Kxg3 {[%clk 0:00:03]}  Be4 {[%clk 0:00:03]} 48. h5 {[%clk 0:00:04]}  Ke5 {[%clk 0:00:03]} 49. Kf2 {[%clk 0:00:04]}  Kf4 {[%clk 0:00:03]} 50. g3+ {[%clk 0:00:05]}  Kg5 {[%clk 0:00:03]} 51. Ke3 {[%clk 0:00:05]}  Bh7 {[%clk 0:00:03]} 52. Kd2 {[%clk 0:00:06]}  Bg8 {[%clk 0:00:03]} 53. Kc3 {[%clk 0:00:07]}  c4 {[%clk 0:00:03]} 54. h6 {[%clk 0:00:07]}  Kxh6 {[%clk 0:00:03]} 55. g4 {[%clk 0:00:07]} 0-1


[Site "https://www.chess.com"]

[Event "Titled Tuesday Blitz June 20 Early 2023"]
[White "Belov, Alexei"]
[Black "Bazilius, Augustinas"]
[WhiteFideId "4128206"]
[BlackFideId "12832251"]
[WhiteElo "2574"]
[BlackElo "1980"]
[Result "0-1"]
[Round "6"]
[TimeControl "180+2"]
[Date "2023.06.20"]
[WhiteClock "0:00:08"]
[BlackClock "0:00:11"]
[Board "112"]

1. e4 {[%clk 0:03:00]}  c5 {[%clk 0:02:53]} 2. Nf3 {[%clk 0:03:00]}  e6 {[%clk 0:02:53]} 3. d4 {[%clk 0:03:00]}  cxd4 {[%clk 0:02:54]} 4. Nxd4 {[%clk 0:03:01]}  a6 {[%clk 0:02:55]} 5. Nc3 {[%clk 0:03:01]}  b5 {[%clk 0:02:56]} 6. Be2 {[%clk 0:03:00]}  Bb7 {[%clk 0:02:55]} 7. Bf3 {[%clk 0:03:01]}  Nf6 {[%clk 0:02:40]} 8. e5 {[%clk 0:02:59]}  Bxf3 {[%clk 0:02:39]} 9. Qxf3 {[%clk 0:02:59]}  Nd5 {[%clk 0:02:36]} 10. Nxd5 {[%clk 0:02:57]}  exd5 {[%clk 0:02:37]} 11. Qxd5 {[%clk 0:02:54]}  Ra7 {[%clk 0:02:15]} 12. O-O {[%clk 0:02:40]}  Qb6 {[%clk 0:01:58]} 13. Be3 {[%clk 0:02:33]}  Rc7 {[%clk 0:01:57]} 14. c3 {[%clk 0:02:16]}  Bc5 {[%clk 0:01:52]} 15. Nf5 {[%clk 0:02:07]}  O-O {[%clk 0:01:49]} 16. Rad1 {[%clk 0:01:51]}  Re8 {[%clk 0:01:40]} 17. Nd6 {[%clk 0:01:41]}  Rf8 {[%clk 0:01:34]} 18. Bxc5 {[%clk 0:01:36]}  Rxc5 {[%clk 0:01:30]} 19. Qe4 {[%clk 0:01:24]}  Nc6 {[%clk 0:01:29]} 20. Rd5 {[%clk 0:01:24]}  Rxd5 {[%clk 0:01:20]} 21. Qxd5 {[%clk 0:01:24]}  b4 {[%clk 0:01:21]} 22. c4 {[%clk 0:01:01]}  Ne7 {[%clk 0:01:19]} 23. Qe4 {[%clk 0:00:50]}  Qc5 {[%clk 0:01:13]} 24. Kh1 {[%clk 0:00:44]}  Qa5 {[%clk 0:01:09]} 25. Ra1 {[%clk 0:00:33]}  b3 {[%clk 0:01:06]} 26. a3 {[%clk 0:00:30]}  Qd2 {[%clk 0:01:07]} 27. Rb1 {[%clk 0:00:23]}  Qxf2 {[%clk 0:01:07]} 28. h3 {[%clk 0:00:20]}  Ng6 {[%clk 0:01:02]} 29. Qd3 {[%clk 0:00:14]}  Nf4 {[%clk 0:00:58]} 30. Qf3 {[%clk 0:00:14]}  Qxf3 {[%clk 0:00:51]} 31. gxf3 {[%clk 0:00:14]}  Nxh3 {[%clk 0:00:52]} 32. Rc1 {[%clk 0:00:12]}  Nf2+ {[%clk 0:00:49]} 33. Kg2 {[%clk 0:00:12]}  Nd3 {[%clk 0:00:49]} 34. Rc3 {[%clk 0:00:12]}  Nc5 {[%clk 0:00:42]} 35. f4 {[%clk 0:00:11]}  f6 {[%clk 0:00:39]} 36. Re3 {[%clk 0:00:04]}  fxe5 {[%clk 0:00:37]} 37. fxe5 {[%clk 0:00:04]}  Rf4 {[%clk 0:00:34]} 38. Kg3 {[%clk 0:00:04]}  Rd4 {[%clk 0:00:33]} 39. Kf3 {[%clk 0:00:04]}  Rd2 {[%clk 0:00:30]} 40. Re2 {[%clk 0:00:04]}  Rxe2 {[%clk 0:00:21]} 41. Kxe2 {[%clk 0:00:05]}  h5 {[%clk 0:00:21]} 42. Ke3 {[%clk 0:00:06]}  h4 {[%clk 0:00:21]} 43. Kf4 {[%clk 0:00:06]}  Nd3+ {[%clk 0:00:22]} 44. Kg4 {[%clk 0:00:06]}  Nxb2 {[%clk 0:00:23]} 45. Ne4 {[%clk 0:00:05]}  Nd3 {[%clk 0:00:20]} 46. Kxh4 {[%clk 0:00:06]}  Nxe5 {[%clk 0:00:20]} 47. Nd2 {[%clk 0:00:06]}  b2 {[%clk 0:00:20]} 48. Kg5 {[%clk 0:00:06]}  Nxc4 {[%clk 0:00:21]} 49. Nb1 {[%clk 0:00:06]}  Kf7 {[%clk 0:00:18]} 50. Kf5 {[%clk 0:00:06]}  g6+ {[%clk 0:00:16]} 51. Ke4 {[%clk 0:00:06]}  Kf6 {[%clk 0:00:17]} 52. Kd4 {[%clk 0:00:07]}  Nd6 {[%clk 0:00:15]} 53. Kc3 {[%clk 0:00:07]}  g5 {[%clk 0:00:16]} 54. Kxb2 {[%clk 0:00:07]}  Kf5 {[%clk 0:00:16]} 55. Nd2 {[%clk 0:00:07]}  g4 {[%clk 0:00:16]} 56. Nf1 {[%clk 0:00:07]}  Kf4 {[%clk 0:00:16]} 57. Kc3 {[%clk 0:00:07]}  Nb7 {[%clk 0:00:13]} 58. Kc4 {[%clk 0:00:07]}  Ke5 {[%clk 0:00:11]} 59. Ne3 {[%clk 0:00:06]}  g3 {[%clk 0:00:11]} 60. a4 {[%clk 0:00:05]}  d6 {[%clk 0:00:09]} 61. Kd3 {[%clk 0:00:05]}  Nc5+ {[%clk 0:00:08]} 62. Kc4 {[%clk 0:00:05]}  Nxa4 {[%clk 0:00:08]} 63. Kb4 {[%clk 0:00:06]}  Nc5 {[%clk 0:00:08]} 64. Ka5 {[%clk 0:00:06]}  Ke4 {[%clk 0:00:08]} 65. Ng2 {[%clk 0:00:07]}  Kf3 {[%clk 0:00:08]} 66. Nh4+ {[%clk 0:00:07]}  Kf2 {[%clk 0:00:08]} 67. Kb6 {[%clk 0:00:07]}  g2 {[%clk 0:00:07]} 68. Nxg2 {[%clk 0:00:07]}  Kxg2 {[%clk 0:00:07]} 69. Kc6 {[%clk 0:00:08]}  Nb7 {[%clk 0:00:08]} 70. Kxb7 {[%clk 0:00:08]}  d5 {[%clk 0:00:08]} 71. Kxa6 {[%clk 0:00:08]}  d4 {[%clk 0:00:09]} 72. Kb5 {[%clk 0:00:09]}  d3 {[%clk 0:00:10]} 73. Kc4 {[%clk 0:00:08]}  d2 {[%clk 0:00:11]} 0-1


[Site "https://www.chess.com"]

[Event "Titled Tuesday Blitz June 20 Early 2023"]
[White "Aldokhin, Ivan"]
[Black "i_like_explosions"]
[WhiteFideId "24115720"]
[WhiteElo "2322"]
[BlackElo "2403"]
[Result "1-0"]
[Round "6"]
[TimeControl "180+2"]
[Date "2023.06.20"]
[WhiteClock "0:00:18"]
[BlackClock "0:00:05"]
[Board "113"]

1. e4 {[%clk 0:03:00]}  c5 {[%clk 0:02:59]} 2. Nf3 {[%clk 0:03:01]}  Nc6 {[%clk 0:02:59]} 3. d4 {[%clk 0:03:02]}  cxd4 {[%clk 0:03:00]} 4. Nxd4 {[%clk 0:03:03]}  Nf6 {[%clk 0:03:00]} 5. Nc3 {[%clk 0:03:03]}  e5 {[%clk 0:03:00]} 6. Ndb5 {[%clk 0:03:03]}  d6 {[%clk 0:03:01]} 7. Bg5 {[%clk 0:03:04]}  a6 {[%clk 0:03:01]} 8. Na3 {[%clk 0:03:05]}  b5 {[%clk 0:03:01]} 9. Nd5 {[%clk 0:03:05]}  Be7 {[%clk 0:03:01]} 10. Bxf6 {[%clk 0:03:05]}  Bxf6 {[%clk 0:03:01]} 11. c3 {[%clk 0:03:06]}  Bg5 {[%clk 0:03:01]} 12. Nc2 {[%clk 0:03:07]}  Ne7 {[%clk 0:03:02]} 13. a4 {[%clk 0:03:07]}  bxa4 {[%clk 0:03:01]} 14. Rxa4 {[%clk 0:03:05]}  Nxd5 {[%clk 0:03:01]} 15. Qxd5 {[%clk 0:03:04]}  Be6 {[%clk 0:03:01]} 16. Qd1 {[%clk 0:02:29]}  a5 {[%clk 0:01:43]} 17. Bb5+ {[%clk 0:02:07]}  Bd7 {[%clk 0:01:42]} 18. Na3 {[%clk 0:01:54]}  Bxb5 {[%clk 0:01:19]} 19. Nxb5 {[%clk 0:01:53]}  Ra6 {[%clk 0:01:16]} 20. O-O {[%clk 0:01:45]}  O-O {[%clk 0:01:16]} 21. Qd5 {[%clk 0:01:45]}  Qb6 {[%clk 0:01:06]} 22. Rd1 {[%clk 0:01:42]}  h6 {[%clk 0:01:01]} 23. g3 {[%clk 0:01:28]}  Rc8 {[%clk 0:00:46]} 24. Rc4 {[%clk 0:01:05]}  Rd8 {[%clk 0:00:30]} 25. Rc7 {[%clk 0:01:01]}  Rf8 {[%clk 0:00:21]} 26. h4 {[%clk 0:00:53]}  Bd8 {[%clk 0:00:21]} 27. Rb7 {[%clk 0:00:49]}  Qc5 {[%clk 0:00:17]} 28. Nxd6 {[%clk 0:00:38]}  Qxd5 {[%clk 0:00:10]} 29. Rxd5 {[%clk 0:00:39]}  Bb6 {[%clk 0:00:09]} 30. Nc4 {[%clk 0:00:34]}  Bd8 {[%clk 0:00:08]} 31. Nxe5 {[%clk 0:00:28]}  f6 {[%clk 0:00:07]} 32. Ng6 {[%clk 0:00:19]}  Re8 {[%clk 0:00:05]} 33. Rb8 {[%clk 0:00:18]} 1-0


[Site "https://www.chess.com"]

[Event "Titled Tuesday Blitz June 20 Early 2023"]
[White "MKlose11"]
[Black "Ziegler, Ari"]
[BlackFideId "1700987"]
[WhiteElo "2570"]
[BlackElo "2288"]
[Result "1-0"]
[Round "6"]
[TimeControl "180+2"]
[Date "2023.06.20"]
[WhiteClock "0:01:20"]
[BlackClock "0:00:13"]
[Board "114"]

1. e4 {[%clk 0:02:58]}  e6 {[%clk 0:02:59]} 2. Nf3 {[%clk 0:02:56]}  d5 {[%clk 0:02:59]} 3. e5 {[%clk 0:02:57]}  c5 {[%clk 0:02:59]} 4. b4 {[%clk 0:02:57]}  b6 {[%clk 0:02:57]} 5. bxc5 {[%clk 0:02:55]}  bxc5 {[%clk 0:02:56]} 6. c3 {[%clk 0:02:56]}  Nc6 {[%clk 0:02:55]} 7. Be2 {[%clk 0:02:54]}  Bd7 {[%clk 0:02:46]} 8. d4 {[%clk 0:02:54]}  Nh6 {[%clk 0:02:45]} 9. Bxh6 {[%clk 0:02:53]}  gxh6 {[%clk 0:02:45]} 10. O-O {[%clk 0:02:54]}  cxd4 {[%clk 0:02:44]} 11. cxd4 {[%clk 0:02:53]}  Bg7 {[%clk 0:02:45]} 12. Nbd2 {[%clk 0:02:50]}  O-O {[%clk 0:02:44]} 13. Nb3 {[%clk 0:02:51]}  f6 {[%clk 0:02:45]} 14. exf6 {[%clk 0:02:49]}  Qxf6 {[%clk 0:02:44]} 15. Qd2 {[%clk 0:02:42]}  Be8 {[%clk 0:02:41]} 16. Rac1 {[%clk 0:02:40]}  Rc8 {[%clk 0:02:38]} 17. Ba6 {[%clk 0:02:38]}  Rc7 {[%clk 0:02:32]} 18. Ne5 {[%clk 0:02:33]}  Qg5 {[%clk 0:01:43]} 19. f4 {[%clk 0:02:27]}  Qe7 {[%clk 0:01:29]} 20. Bd3 {[%clk 0:02:13]}  Nxe5 {[%clk 0:01:19]} 21. dxe5 {[%clk 0:02:13]}  Rxc1 {[%clk 0:01:14]} 22. Rxc1 {[%clk 0:02:06]}  Bg6 {[%clk 0:01:02]} 23. g3 {[%clk 0:02:00]}  h5 {[%clk 0:00:59]} 24. Nd4 {[%clk 0:02:00]}  h4 {[%clk 0:00:55]} 25. Qc2 {[%clk 0:01:50]}  Bxd3 {[%clk 0:00:52]} 26. Qxd3 {[%clk 0:01:51]}  hxg3 {[%clk 0:00:53]} 27. hxg3 {[%clk 0:01:52]}  Qf7 {[%clk 0:00:38]} 28. Rc6 {[%clk 0:01:45]}  Bxe5 {[%clk 0:00:34]} 29. Nxe6 {[%clk 0:01:33]}  Qb7 {[%clk 0:00:20]} 30. Qxd5 {[%clk 0:01:20]}  Qb1+ {[%clk 0:00:20]} 31. Kg2 {[%clk 0:01:20]}  Qb2+ {[%clk 0:00:13]} 32. Kh3 {[%clk 0:01:20]} 1-0


[Site "https://www.chess.com"]

[Event "Titled Tuesday Blitz June 20 Early 2023"]
[White "Ambartsumova, Karina"]
[Black "Fernandez Siles, Luis"]
[WhiteFideId "4166299"]
[BlackFideId "2209420"]
[WhiteElo "2240"]
[BlackElo "2195"]
[Result "1-0"]
[Round "6"]
[TimeControl "180+2"]
[Date "2023.06.20"]
[WhiteClock "0:01:07"]
[BlackClock "0:01:14"]
[Board "115"]

1. Nf3 {[%clk 0:03:00]}  Nf6 {[%clk 0:02:59]} 2. c4 {[%clk 0:03:00]}  g6 {[%clk 0:02:59]} 3. d4 {[%clk 0:03:00]}  Bg7 {[%clk 0:02:59]} 4. Nc3 {[%clk 0:03:00]}  O-O {[%clk 0:03:00]} 5. e4 {[%clk 0:03:00]}  d6 {[%clk 0:03:01]} 6. Be2 {[%clk 0:02:59]}  c5 {[%clk 0:03:01]} 7. h3 {[%clk 0:02:59]}  Nc6 {[%clk 0:02:50]} 8. d5 {[%clk 0:02:58]}  Na5 {[%clk 0:02:49]} 9. O-O {[%clk 0:02:58]}  e5 {[%clk 0:02:47]} 10. dxe6 {[%clk 0:02:50]}  Bxe6 {[%clk 0:02:46]} 11. Nd2 {[%clk 0:02:48]}  Nc6 {[%clk 0:02:45]} 12. f4 {[%clk 0:02:48]}  Nd4 {[%clk 0:02:31]} 13. Bd3 {[%clk 0:02:49]}  Bd7 {[%clk 0:02:19]} 14. e5 {[%clk 0:02:06]}  dxe5 {[%clk 0:02:17]} 15. fxe5 {[%clk 0:02:07]}  Nh5 {[%clk 0:02:13]} 16. Nde4 {[%clk 0:01:54]}  Bxe5 {[%clk 0:02:08]} 17. Bh6 {[%clk 0:01:54]}  Qh4 {[%clk 0:01:50]} 18. Bg5 {[%clk 0:01:37]}  Nf5 {[%clk 0:01:33]} 19. Bxh4 {[%clk 0:01:20]}  Nxh4 {[%clk 0:01:33]} 20. g4 {[%clk 0:01:07]}  Bd4+ {[%clk 0:01:14]} 21. Kh1 {[%clk 0:01:07]} 1-0


[Site "https://www.chess.com"]

[Event "Titled Tuesday Blitz June 20 Early 2023"]
[White "Tsukerman, Julia"]
[Black "Kuzmin, Roman"]
[WhiteFideId "2621649"]
[BlackFideId "44134932"]
[WhiteElo "1667"]
[BlackElo "2122"]
[Result "0-1"]
[Round "6"]
[TimeControl "180+2"]
[Date "2023.06.20"]
[WhiteClock "0:00:01"]
[BlackClock "0:01:29"]
[Board "120"]

1. e4 {[%clk 0:03:00]}  c5 {[%clk 0:02:58]} 2. Nf3 {[%clk 0:03:00]}  d6 {[%clk 0:02:59]} 3. d4 {[%clk 0:03:00]}  cxd4 {[%clk 0:02:59]} 4. Nxd4 {[%clk 0:03:01]}  Nf6 {[%clk 0:03:00]} 5. Nc3 {[%clk 0:03:01]}  a6 {[%clk 0:03:01]} 6. Be3 {[%clk 0:02:57]}  e5 {[%clk 0:03:01]} 7. Nb3 {[%clk 0:02:54]}  Be6 {[%clk 0:03:01]} 8. f3 {[%clk 0:02:53]}  h5 {[%clk 0:03:02]} 9. Qd2 {[%clk 0:02:52]}  Nbd7 {[%clk 0:03:02]} 10. O-O-O {[%clk 0:02:51]}  Be7 {[%clk 0:02:59]} 11. Be2 {[%clk 0:02:47]}  b5 {[%clk 0:02:55]} 12. g3 {[%clk 0:02:36]}  Nb6 {[%clk 0:02:51]} 13. Bxb6 {[%clk 0:02:31]}  Qxb6 {[%clk 0:02:52]} 14. Nd5 {[%clk 0:02:31]}  Nxd5 {[%clk 0:02:32]} 15. exd5 {[%clk 0:02:32]}  Bd7 {[%clk 0:02:32]} 16. f4 {[%clk 0:02:18]}  Bf6 {[%clk 0:02:31]} 17. Rhe1 {[%clk 0:02:08]}  a5 {[%clk 0:02:22]} 18. Kb1 {[%clk 0:01:59]}  a4 {[%clk 0:02:22]} 19. Nc1 {[%clk 0:01:59]}  a3 {[%clk 0:02:16]} 20. b3 {[%clk 0:01:53]}  O-O {[%clk 0:02:13]} 21. Bxh5 {[%clk 0:01:34]}  Rac8 {[%clk 0:02:12]} 22. Ne2 {[%clk 0:01:11]}  Bf5 {[%clk 0:02:07]} 23. Rc1 {[%clk 0:01:10]}  b4 {[%clk 0:02:00]} 24. g4 {[%clk 0:00:59]}  Be4 {[%clk 0:02:00]} 25. g5 {[%clk 0:00:56]}  Be7 {[%clk 0:02:01]} 26. Ng3 {[%clk 0:00:40]}  Bh7 {[%clk 0:01:53]} 27. fxe5 {[%clk 0:00:35]}  Bxg5 {[%clk 0:01:44]} 28. Qd1 {[%clk 0:00:12]}  Bxc1 {[%clk 0:01:40]} 29. Qxc1 {[%clk 0:00:12]}  Rxc2 {[%clk 0:01:29]} 30. Qxc2 {[%clk 0:00:11]}  Bxc2+ {[%clk 0:01:30]} 31. Kxc2 {[%clk 0:00:12]}  Qd4 {[%clk 0:01:29]} 32. Re4 {[%clk 0:00:09]}  Qc3+ {[%clk 0:01:28]} 33. Kd1 {[%clk 0:00:07]}  Qd3+ {[%clk 0:01:29]} 34. Ke1 {[%clk 0:00:06]}  Rc8 {[%clk 0:01:29]} 35. Re2 {[%clk 0:00:05]}  Rc1+ {[%clk 0:01:28]} 36. Kf2 {[%clk 0:00:05]}  Rc2 {[%clk 0:01:29]} 37. exd6 {[%clk 0:00:04]}  Rxe2+ {[%clk 0:01:28]} 38. Bxe2 {[%clk 0:00:04]}  Qxd5 {[%clk 0:01:29]} 39. Bf3 {[%clk 0:00:03]}  Qxd6 {[%clk 0:01:29]} 40. Ne4 {[%clk 0:00:01]}  Qd4+ {[%clk 0:01:29]} 0-1


[Site "https://www.chess.com"]

[Event "Titled Tuesday Blitz June 20 Early 2023"]
[White "Danielyan, Vahe"]
[Black "KorolDimitriy75"]
[WhiteFideId "13304828"]
[WhiteElo "2423"]
[BlackElo "2424"]
[Result "1-0"]
[Round "6"]
[TimeControl "180+2"]
[Date "2023.06.20"]
[WhiteClock "0:00:31"]
[BlackClock "0:00:00"]
[Board "123"]

1. e4 {[%clk 0:03:00]}  c5 {[%clk 0:03:00]} 2. Nc3 {[%clk 0:03:01]}  g6 {[%clk 0:02:59]} 3. d4 {[%clk 0:03:00]}  cxd4 {[%clk 0:02:59]} 4. Qxd4 {[%clk 0:03:01]}  Nf6 {[%clk 0:02:59]} 5. Be3 {[%clk 0:03:01]}  Nc6 {[%clk 0:02:59]} 6. Qd2 {[%clk 0:03:01]}  Bg7 {[%clk 0:02:59]} 7. f3 {[%clk 0:03:00]}  O-O {[%clk 0:02:58]} 8. O-O-O {[%clk 0:03:00]}  d6 {[%clk 0:02:49]} 9. Kb1 {[%clk 0:03:01]}  Qa5 {[%clk 0:02:47]} 10. h4 {[%clk 0:03:02]}  Be6 {[%clk 0:02:44]} 11. Nge2 {[%clk 0:03:01]}  Rfc8 {[%clk 0:02:39]} 12. Nf4 {[%clk 0:02:52]}  Ne5 {[%clk 0:02:25]} 13. Nxe6 {[%clk 0:02:47]}  fxe6 {[%clk 0:02:26]} 14. h5 {[%clk 0:02:22]}  Nc4 {[%clk 0:02:16]} 15. Bxc4 {[%clk 0:02:18]}  Rxc4 {[%clk 0:02:17]} 16. hxg6 {[%clk 0:02:13]}  hxg6 {[%clk 0:02:16]} 17. Bh6 {[%clk 0:02:07]}  Rac8 {[%clk 0:01:42]} 18. Nd5 {[%clk 0:01:51]}  Qxd2 {[%clk 0:00:19]} 19. Nxf6+ {[%clk 0:01:44]}  Bxf6 {[%clk 0:00:19]} 20. Rxd2 {[%clk 0:01:45]}  Kf7 {[%clk 0:00:18]} 21. Be3 {[%clk 0:01:43]}  b6 {[%clk 0:00:15]} 22. c3 {[%clk 0:01:34]}  Rg8 {[%clk 0:00:13]} 23. Bd4 {[%clk 0:01:33]}  g5 {[%clk 0:00:11]} 24. Rh6 {[%clk 0:01:18]}  e5 {[%clk 0:00:08]} 25. Be3 {[%clk 0:01:03]}  g4 {[%clk 0:00:08]} 26. Kc2 {[%clk 0:01:01]}  gxf3 {[%clk 0:00:07]} 27. gxf3 {[%clk 0:01:02]}  Rg3 {[%clk 0:00:07]} 28. Kd3 {[%clk 0:01:02]}  Rc8 {[%clk 0:00:07]} 29. Rf2 {[%clk 0:01:02]}  Rcg8 {[%clk 0:00:07]} 30. Rh1 {[%clk 0:01:01]}  Ke6 {[%clk 0:00:07]} 31. a4 {[%clk 0:00:58]}  Rg2 {[%clk 0:00:06]} 32. a5 {[%clk 0:00:46]}  Rxf2 {[%clk 0:00:05]} 33. Bxf2 {[%clk 0:00:47]}  Rg2 {[%clk 0:00:04]} 34. axb6 {[%clk 0:00:33]}  axb6 {[%clk 0:00:01]} 35. Rf1 {[%clk 0:00:31]}  Bg5 {[%clk 0:00:01]} 36. b4 {[%clk 0:00:32]}  Bf4 {[%clk 0:00:01]} 37. Bxb6 {[%clk 0:00:31]}  Rb2 {[%clk 0:00:00]} 38. Be3 {[%clk 0:00:31]} 1-0


[Site "https://www.chess.com"]

[Event "Titled Tuesday Blitz June 20 Early 2023"]
[White "Srdanovic, Jovana"]
[Black "Gomes, Luiz Alexandre de Souza"]
[WhiteFideId "954810"]
[BlackFideId "2102790"]
[WhiteElo "2155"]
[BlackElo "2416"]
[Result "0-1"]
[Round "6"]
[TimeControl "180+2"]
[Date "2023.06.20"]
[WhiteClock "0:00:00"]
[BlackClock "0:02:18"]
[Board "127"]

1. d4 {[%clk 0:03:00]}  Nf6 {[%clk 0:02:59]} 2. c4 {[%clk 0:02:46]}  c5 {[%clk 0:02:59]} 3. d5 {[%clk 0:02:45]}  b5 {[%clk 0:02:59]} 4. cxb5 {[%clk 0:02:45]}  a6 {[%clk 0:02:59]} 5. b6 {[%clk 0:02:46]}  g6 {[%clk 0:02:58]} 6. a4 {[%clk 0:02:46]}  Qxb6 {[%clk 0:02:58]} 7. Nc3 {[%clk 0:02:45]}  d6 {[%clk 0:02:58]} 8. a5 {[%clk 0:02:45]}  Qb4 {[%clk 0:02:58]} 9. Ra4 {[%clk 0:02:37]}  Qb7 {[%clk 0:02:58]} 10. e4 {[%clk 0:02:32]}  Bg7 {[%clk 0:02:58]} 11. Be2 {[%clk 0:02:29]}  Nbd7 {[%clk 0:02:58]} 12. Nf3 {[%clk 0:02:28]}  O-O {[%clk 0:02:58]} 13. O-O {[%clk 0:02:28]}  Ne8 {[%clk 0:02:59]} 14. Ra2 {[%clk 0:02:14]}  Nc7 {[%clk 0:02:59]} 15. Bg5 {[%clk 0:02:08]}  Re8 {[%clk 0:02:59]} 16. Qd2 {[%clk 0:02:07]}  Nb5 {[%clk 0:02:58]} 17. Bh6 {[%clk 0:01:41]}  Bh8 {[%clk 0:02:57]} 18. h4 {[%clk 0:01:41]}  Ne5 {[%clk 0:02:57]} 19. Nxe5 {[%clk 0:01:40]}  Bxe5 {[%clk 0:02:58]} 20. Nxb5 {[%clk 0:01:35]}  axb5 {[%clk 0:02:58]} 21. h5 {[%clk 0:01:26]}  Bd7 {[%clk 0:02:56]} 22. f4 {[%clk 0:01:12]}  Bd4+ {[%clk 0:02:54]} 23. Kh1 {[%clk 0:01:13]}  e6 {[%clk 0:02:51]} 24. f5 {[%clk 0:01:00]}  exf5 {[%clk 0:02:49]} 25. exf5 {[%clk 0:01:01]}  Qxd5 {[%clk 0:02:48]} 26. fxg6 {[%clk 0:00:30]}  hxg6 {[%clk 0:02:48]} 27. hxg6 {[%clk 0:00:27]}  fxg6 {[%clk 0:02:47]} 28. b4 {[%clk 0:00:00]}  Re5 {[%clk 0:02:18]} 0-1


[Site "https://www.chess.com"]

[Event "Titled Tuesday Blitz June 20 Early 2023"]
[White "Buchenau, Frank"]
[Black "Ilkhomi, Jaloliddin"]
[WhiteFideId "4604350"]
[BlackFideId "14700948"]
[WhiteElo "2157"]
[BlackElo "2045"]
[Result "0-1"]
[Round "6"]
[TimeControl "180+2"]
[Date "2023.06.20"]
[WhiteClock "0:00:07"]
[BlackClock "0:00:06"]
[Board "128"]

1. e4 {[%clk 0:03:00]}  c6 {[%clk 0:02:55]} 2. Nf3 {[%clk 0:03:00]}  d5 {[%clk 0:02:55]} 3. Nc3 {[%clk 0:03:01]}  Bg4 {[%clk 0:02:53]} 4. d4 {[%clk 0:03:00]}  dxe4 {[%clk 0:02:32]} 5. Nxe4 {[%clk 0:02:59]}  Nf6 {[%clk 0:02:29]} 6. Nxf6+ {[%clk 0:02:54]}  exf6 {[%clk 0:02:30]} 7. Be2 {[%clk 0:02:53]}  Bd6 {[%clk 0:02:24]} 8. h3 {[%clk 0:02:48]}  Bh5 {[%clk 0:02:21]} 9. Nh4 {[%clk 0:02:47]}  Bg6 {[%clk 0:02:05]} 10. O-O {[%clk 0:02:36]}  O-O {[%clk 0:01:58]} 11. Nxg6 {[%clk 0:02:27]}  hxg6 {[%clk 0:01:57]} 12. Re1 {[%clk 0:02:25]}  g5 {[%clk 0:01:53]} 13. Bd3 {[%clk 0:02:24]}  g6 {[%clk 0:01:52]} 14. c4 {[%clk 0:02:18]}  Kg7 {[%clk 0:01:52]} 15. Bd2 {[%clk 0:02:14]}  Nd7 {[%clk 0:01:50]} 16. Bc3 {[%clk 0:02:14]}  c5 {[%clk 0:01:27]} 17. Be4 {[%clk 0:02:10]}  Rb8 {[%clk 0:01:14]} 18. dxc5 {[%clk 0:02:01]}  Nxc5 {[%clk 0:01:15]} 19. Bd5 {[%clk 0:02:00]}  Nd7 {[%clk 0:01:09]} 20. Qd2 {[%clk 0:01:50]}  Be5 {[%clk 0:01:07]} 21. Rad1 {[%clk 0:01:48]}  Bxc3 {[%clk 0:00:44]} 22. Qxc3 {[%clk 0:01:47]}  Qb6 {[%clk 0:00:28]} 23. b4 {[%clk 0:01:45]}  Ne5 {[%clk 0:00:27]} 24. c5 {[%clk 0:01:42]}  Qc7 {[%clk 0:00:27]} 25. Be4 {[%clk 0:01:28]}  g4 {[%clk 0:00:27]} 26. Rd6 {[%clk 0:01:25]}  gxh3 {[%clk 0:00:26]} 27. Qxh3 {[%clk 0:01:25]}  Rbd8 {[%clk 0:00:24]} 28. Red1 {[%clk 0:01:23]}  Rxd6 {[%clk 0:00:23]} 29. Rxd6 {[%clk 0:01:23]}  f5 {[%clk 0:00:21]} 30. Qc3 {[%clk 0:01:18]}  Re8 {[%clk 0:00:20]} 31. Bd5 {[%clk 0:01:15]}  f6 {[%clk 0:00:19]} 32. f4 {[%clk 0:01:14]}  Ng4 {[%clk 0:00:19]} 33. Bf3 {[%clk 0:01:07]}  Qe7 {[%clk 0:00:11]} 34. Bxg4 {[%clk 0:01:03]}  fxg4 {[%clk 0:00:12]} 35. Qd2 {[%clk 0:01:00]}  Qe4 {[%clk 0:00:08]} 36. Rd7+ {[%clk 0:00:54]}  Kh6 {[%clk 0:00:08]} 37. f5+ {[%clk 0:00:53]}  g5 {[%clk 0:00:08]} 38. Rf7 {[%clk 0:00:20]}  Qxf5 {[%clk 0:00:06]} 39. Rxb7 {[%clk 0:00:20]}  g3 {[%clk 0:00:06]} 40. Rd7 {[%clk 0:00:18]}  Qb1+ {[%clk 0:00:05]} 41. Qd1 {[%clk 0:00:07]}  Re1+ {[%clk 0:00:06]} 0-1


[Site "https://www.chess.com"]